[Event "26th Abu Dhabi Master 2019"]
[Site "Abu Dhabi"]
[Date "2019.08.03"]
[Round "2.66"]
[White "Mithil, Ajgaonkar"]
[Black "Mohamed, Faisal"]
[Result "*"]
[ECO "D45"]
[WhiteElo "2314"]
[BlackElo "2150"]
[Annotator "NA"]
[PlyCount "25"]
[EventDate "2019.08.02"]
[EventType "swiss"]
[EventCountry "UAE"]
[SourceTitle "playchess.com"]
[Source "ChessBase"]
[SourceQuality "1"]
[TimeControl "5400+30"]

1. d4 d5 2. c4 c6 3. e3 Nf6 {[%emt 0:06:23]} 4. Nc3 {[%emt 0:01:09]} e6 {[%emt 0:02:51]} 5. Nf3 {[%emt 0:03:26]} Nbd7 {[%emt 0:01:12]} 6. Qc2 {[%emt 0:00:18]} Bd6 {[%emt 0:00:50]} 7. b3 {[%emt 0:00:09]} O-O {[%emt 0:00:43]} 8. Bd3 {[%emt 0:05:19]} e5 {[%emt 0:08:02]} 9. cxd5 {[%emt 0:01:36]} cxd5 {[%emt 0:04:24]} 10. Nb5 {[%emt 0:05:38]} Bb8 {[%emt 0:01:03]} 11. Nd2 {[%emt 0:00:30]} a6 {[%emt 0:05:50]} 12. dxe5 {[%emt 0:17:36]} Nxe5 {[%emt 0:03:51]} 13. Nd4 {[%emt 0:01:07]} *

[Event "26th Abu Dhabi Master 2019"]
[Site "Abu Dhabi"]
[Date "2019.08.03"]
[Round "2.67"]
[White "Gajwa Ankit"]
[Black "Ilyasli, Ughur"]
[Result "0-1"]
[ECO "C11"]
[WhiteElo "2302"]
[BlackElo "2104"]
[Annotator "NA"]
[PlyCount "106"]
[EventDate "2019.08.02"]
[EventType "swiss"]
[EventCountry "UAE"]
[SourceTitle "playchess.com"]
[Source "ChessBase"]
[SourceQuality "1"]
[TimeControl "5400+30"]

1. e4 e6 2. d4 d5 3. Nc3 Nf6 4. e5 Nfd7 5. f4 c5 6. Nf3 Nc6 7. Be3 cxd4 8. Nxd4 Bc5 9. Qd2 O-O 10. O-O-O a6 11. h4 Nxd4 12. Bxd4 b5 13. Rh3 Qb6 14. Re3 f6 15. exf6 Nxf6 16. Be2 Bd7 17. g4 b4 18. Bxc5 Qxc5 19. Nb1 Rac8 20. Bxa6 Rc6 21. Bd3 Nxg4 22. Re2 Ra8 23. f5 exf5 24. Rde1 Rf8 25. Qf4 Qd6 26. Qd4 Qc5 27. Qf4 Qd6 28. Qd4 Rf7 29. Nd2 Qc5 30. Qf4 Qd6 31. Qd4 f4 32. Nf3 h6 33. h5 Qc5 34. Bg6 Rf8 35. Re7 Qxd4 36. Nxd4 Rd6 37. Nf3 Bf5 38. Bxf5 Rxf5 39. Rg1 Kf8 40. Rb7 Nf6 41. Rgxg7 Nxh5 42. Rgc7 Kg8 43. Rxb4 Rg6 44. Rb8+ Rf8 45. Rxf8+ Kxf8 46. a4 Ra6 47. b3 Nf6 48. Kb2 Ne4 49. c4 Ng5 50. Nxg5 hxg5 51. cxd5 f3 52. Rc6 Rxc6 53. dxc6 Ke7 0-1

[Event "26th Abu Dhabi Master 2019"]
[Site "Abu Dhabi"]
[Date "2019.08.03"]
[Round "2.68"]
[White "Salem, Ghuloom"]
[Black "Haase, Pavel"]
[Result "1/2-1/2"]
[ECO "C01"]
[WhiteElo "2205"]
[BlackElo "2160"]
[Annotator "NA"]
[PlyCount "44"]
[EventDate "2019.08.02"]
[EventType "swiss"]
[EventCountry "UAE"]
[SourceTitle "playchess.com"]
[Source "ChessBase"]
[SourceQuality "1"]
[TimeControl "5400+30"]

1. e4 {[%emt 0:08:28]} e6 {[%emt 0:00:10]} 2. d4 {[%emt 0:01:16]} d5 {[%emt 0:00:11]} 3. exd5 {[%emt 0:00:09]} exd5 {[%emt 0:00:16]} 4. Nf3 {[%emt 0:00:05]} Bd6 {[%emt 0:00:36]} 5. Be2 {[%emt 0:00:11]} Ne7 {[%emt 0:00:46]} 6. c4 {[%emt 0:00:26]} c6 {[%emt 0:00:14]} 7. O-O {[%emt 0:01:26]} O-O {[%emt 0:01:20]} 8. Nc3 {[%emt 0:00:19]} Nd7 {[%emt 0:15:57]} 9. b3 {[%emt 0:03:38]} Re8 {[%emt 0:04:10]} 10. Qc2 {[%emt 0:10:59]} Nf8 {[%emt 0:11:06]} 11. Bd3 {[%emt 0:01:58]} f6 {[%emt 0:03:29]} 12. h3 {[%emt 0:01:47]} Be6 {[%emt 0:01:58]} 13. Re1 {[%emt 0:06:07]} Qd7 {[%emt 0:00:47]} 14. c5 {[%emt 0:06:04]} Bc7 {[%emt 0:01:19]} 15. Ne2 {[%emt 0:00:59]} g5 {[%emt 0:05:05]} 16. Ng3 {[%emt 0:03:21]} Nfg6 {[%emt 0:17:44]} 17. Nh5 {[%emt 0:03:58]} Rf8 {[%emt 0:00:23]} 18. Qe2 {[%emt 0:07:53]} Bf5 {[%emt 0:05:08]} 19. Bxf5 {[%emt 0:02:25]} Nxf5 {[%emt 0:00:20]} 20. Qe6+ {[%emt 0:00:20]} Qxe6 {[%emt 0:00:06]} 21. Rxe6 {[%emt 0:00:06]} Ng7 {[%emt 0:01:59]} 22. Nxg7 {[%emt 0:06:36]} Kxg7 {[%emt 0:00:13]} 1/2-1/2

[Event "26th Abu Dhabi Master 2019"]
[Site "Abu Dhabi"]
[Date "2019.08.03"]
[Round "2.69"]
[White "Ashraf, Artin"]
[Black "Samant Aditya S"]
[Result "1-0"]
[ECO "A05"]
[WhiteElo "2141"]
[BlackElo "2296"]
[Annotator "NA"]
[PlyCount "139"]
[EventDate "2019.08.02"]
[EventType "swiss"]
[EventCountry "UAE"]
[SourceTitle "playchess.com"]
[Source "ChessBase"]
[SourceQuality "1"]
[TimeControl "5400+30"]

1. Nf3 {[%emt 0:02:04]} Nf6 {[%emt 0:00:00]} 2. c4 {[%emt 0:00:40]} e6 {[%emt 0:00:00]} 3. g3 {[%emt 0:00:21]} d5 {[%emt 0:00:11]} 4. b3 {[%emt 0:01:19]} Be7 {[%emt 0:02:11]} 5. Bb2 {[%emt 0:00:31]} O-O {[%emt 0:00:12]} 6. Bg2 {[%emt 0:00:12]} c6 {[%emt 0:01:38]} 7. O-O {[%emt 0:01:05]} Nbd7 {[%emt 0:00:15]} 8. d4 {[%emt 0:01:40]} b6 {[%emt 0:03:02]} 9. Nfd2 {[%emt 0:12:08]} Bb7 {[%emt 0:01:19]} 10. e4 {[%emt 0:08:06]} dxe4 {[%emt 0:05:00]} 11. Nc3 {[%emt 0:01:21]} Qc7 {[%emt 0:07:13]} 12. Ndxe4 {[%emt 0:04:20]} Rad8 {[%emt 0:00:15]} 13. Nxf6+ {[%emt 0:12:37]} Nxf6 {[%emt 0:00:24]} 14. Qe2 {[%emt 0:00:31]} c5 {[%emt 0:09:57]} 15. Nb5 {[%emt 0:02:02]} Qd7 {[%emt 0:00:18]} 16. dxc5 {[%emt 0:01:48]} Bxg2 {[%emt 0:00:34]} 17. Kxg2 {[%emt 0:01:19]} Bxc5 {[%emt 0:09:53]} 18. Qf3 {[%emt 0:12:29]} Qe7 {[%emt 0:04:29]} 19. Rad1 {[%emt 0:10:03]} e5 {[%emt 0:12:37]} 20. Rxd8 {[%emt 0:01:00]} Rxd8 {[%emt 0:00:17]} 21. Rd1 {[%emt 0:00:39]} Rxd1 {[%emt 0:13:51]} 22. Qxd1 {[%emt 0:00:42]} h5 {[%emt 0:01:19]} 23. Nc3 {[%emt 0:15:00]} Ng4 {[%emt 0:06:16]} 24. Nd5 {[%emt 0:02:46]} Qg5 {[%emt 0:12:51]} 25. Qe2 {[%emt 0:04:46]} e4 {[%emt 0:04:42]} 26. Qxe4 {[%emt 0:00:31]} Qd2 {[%emt 0:00:58]} 27. Qe8+ {[%emt 0:01:00]} Kh7 {[%emt 0:01:30]} 28. Qxf7 {[%emt 0:00:28]} Qxb2 {[%emt 0:00:15]} 29. Qxh5+ {[%emt 0:00:21]} Nh6 {[%emt 0:00:11]} 30. Qf3 {[%emt 0:00:25]} Qxa2 {[%emt 0:02:04]} 31. b4 {[%emt 0:00:30]} Qxc4 {[%emt 0:01:16]} 32. bxc5 {[%emt 0:00:26]} bxc5 {[%emt 0:00:17]} 33. Ne3 {[%emt 0:00:35]} Qd4 {[%emt 0:00:37]} 34. g4 {[%emt 0:00:58]} Qf6 {[%emt 0:00:30]} 35. Qd5 {[%emt 0:00:19]} Qd4 {[%emt 0:00:31]} 36. Qh5 {[%emt 0:00:58]} g6 {[%emt 0:00:30]} 37. Qg5 {[%emt 0:00:23]} Nf7 {[%emt 0:00:26]} 38. Qe7 {[%emt 0:00:13]} Kg7 {[%emt 0:00:21]} 39. Qxa7 {[%emt 0:00:29]} Qe4+ {[%emt 0:00:06]} 40. Kg1 {[%emt 0:00:20]} Qb1+ {[%emt 0:00:47]} 41. Kg2 {[%emt 0:00:08]} Qe4+ {[%emt 0:00:09]} 42. Kg1 {[%emt 0:00:17]} c4 {[%emt 0:01:00]} 43. Qc7 {[%emt 0:00:25]} Qb1+ {[%emt 0:00:28]} 44. Kg2 {[%emt 0:00:16]} Qe4+ {[%emt 0:00:18]} 45. Kg1 {[%emt 0:00:50]} Qb1+ {[%emt 0:00:06]} 46. Kg2 {[%emt 0:00:16]} Qe4+ {[%emt 0:00:07]} 47. Kg3 {[%emt 0:00:48]} Qh1 {[%emt 0:01:48]} 48. Qxc4 {[%emt 0:00:16]} Qg1+ {[%emt 0:00:08]} 49. Ng2 {[%emt 0:00:27]} Qa1 {[%emt 0:00:21]} 50. Qc7 {[%emt 0:00:17]} Kg8 {[%emt 0:00:55]} 51. Ne3 {[%emt 0:01:31]} Qg1+ {[%emt 0:00:21]} 52. Kf3 {[%emt 0:00:19]} Qh1+ {[%emt 0:00:32]} 53. Ke2 {[%emt 0:00:15]} Qe4 {[%emt 0:00:34]} 54. Qb8+ {[%emt 0:00:21]} Kg7 {[%emt 0:00:35]} 55. Qc7 {[%emt 0:00:48]} Kg8 {[%emt 0:00:27]} 56. Qc4 {[%emt 0:00:10]} Qe5 {[%emt 0:00:37]} 57. f4 {[%emt 0:00:52]} Qb2+ {[%emt 0:00:14]} 58. Qc2 {[%emt 0:00:11]} Qb6 {[%emt 0:00:32]} 59. Kf3 {[%emt 0:00:52]} Qf6 {[%emt 0:00:11]} 60. Nd5 {[%emt 0:00:42]} Qd6 {[%emt 0:00:56]} 61. Qe4 {[%emt 0:00:44]} Qa3+ {[%emt 0:00:31]} 62. Ne3 {[%emt 0:00:38]} Qd6 {[%emt 0:00:12]} 63. h4 {[%emt 0:00:38]} Qf6 {[%emt 0:00:38]} 64. g5 {[%emt 0:01:01]} Qb6 {[%emt 0:00:46]} 65. h5 {[%emt 0:00:42]} Kg7 {[%emt 0:00:30]} 66. Kg4 {[%emt 0:00:43]} Qd6 {[%emt 0:00:29]} 67. hxg6 {[%emt 0:00:47]} Qxg6 {[%emt 0:00:07]} 68. Nf5+ {[%emt 0:00:09]} Kh8 {[%emt 0:00:32]} 69. Qh1+ {[%emt 0:00:19]} Qh7 {[%emt 0:00:14]} 70. Qa1+ 1-0

[Event "26th Abu Dhabi Master 2019"]
[Site "Abu Dhabi"]
[Date "2019.08.03"]
[Round "2.70"]
[White "Eynullayev, Atilla"]
[Black "Wang, Shanshan"]
[Result "1-0"]
[ECO "D90"]
[WhiteElo "2228"]
[BlackElo "2122"]
[Annotator "NA"]
[PlyCount "83"]
[EventDate "2019.08.02"]
[EventType "swiss"]
[EventCountry "UAE"]
[SourceTitle "playchess.com"]
[Source "ChessBase"]
[SourceQuality "1"]
[TimeControl "5400+30"]

1. d4 {[%emt 0:00:00]} Nf6 {[%emt 0:11:26]} 2. c4 {[%emt 0:00:00]} g6 {[%emt 0:00:06]} 3. Nc3 {[%emt 0:00:00]} d5 {[%emt 0:00:13]} 4. Nf3 {[%emt 0:00:05]} Bg7 {[%emt 0:00:12]} 5. h4 {[%emt 0:00:09]} h5 {[%emt 0:10:51]} 6. Bg5 {[%emt 0:03:34]} Ne4 {[%emt 0:04:39]} 7. cxd5 {[%emt 0:04:59]} Nxc3 {[%emt 0:01:02]} 8. bxc3 {[%emt 0:00:40]} Qxd5 {[%emt 0:00:10]} 9. e3 {[%emt 0:06:18]} c5 {[%emt 0:01:49]} 10. Be2 {[%emt 0:03:46]} cxd4 {[%emt 0:06:57]} 11. cxd4 {[%emt 0:01:15]} Qa5+ {[%emt 0:00:29]} 12. Qd2 {[%emt 0:01:40]} Qxd2+ {[%emt 0:01:51]} 13. Kxd2 {[%emt 0:03:35]} Nc6 {[%emt 0:02:46]} 14. Rab1 {[%emt 0:10:16]} e6 {[%emt 0:08:10]} 15. Rhc1 {[%emt 0:06:16]} a6 {[%emt 0:04:47]} 16. Bd1 {[%emt 0:09:10]} Na5 {[%emt 0:11:01]} 17. Rb6 {[%emt 0:10:07]} Bd7 {[%emt 0:05:24]} 18. Rc5 {[%emt 0:07:10]} Bb5 {[%emt 0:04:59]} 19. Be2 {[%emt 0:02:15]} f6 {[%emt 0:03:24]} 20. Bxb5+ {[%emt 0:04:46]} axb5 {[%emt 0:00:11]} 21. Rbxb5 {[%emt 0:00:30]} Nc6 {[%emt 0:08:21]} 22. Rxb7 {[%emt 0:05:20]} Rxa2+ {[%emt 0:04:26]} 23. Ke1 {[%emt 0:02:26]} Ra1+ {[%emt 0:00:32]} 24. Ke2 {[%emt 0:00:55]} Ra2+ {[%emt 0:00:20]} 25. Nd2 {[%emt 0:01:16]} O-O {[%emt 0:03:14]} 26. Rxc6 {[%emt 0:02:49]} fxg5 {[%emt 0:00:07]} 27. Rxe6 {[%emt 0:01:45]} Rf7 {[%emt 0:01:28]} 28. Rxf7 {[%emt 0:04:41]} Kxf7 {[%emt 0:00:07]} 29. Re4 {[%emt 0:00:33]} gxh4 {[%emt 0:01:29]} 30. Rxh4 {[%emt 0:01:00]} Bf8 {[%emt 0:00:35]} 31. d5 {[%emt 0:01:49]} Be7 {[%emt 0:00:16]} 32. Rd4 {[%emt 0:01:10]} Bc5 {[%emt 0:00:30]} 33. Rd3 {[%emt 0:00:52]} Bb4 {[%emt 0:00:50]} 34. e4 {[%emt 0:00:31]} Ke7 {[%emt 0:00:36]} 35. e5 {[%emt 0:01:18]} g5 {[%emt 0:00:18]} 36. d6+ {[%emt 0:01:44]} Kd7 {[%emt 0:00:05]} 37. Ke3 {[%emt 0:00:35]} Bc5+ {[%emt 0:00:15]} 38. Ke4 {[%emt 0:00:51]} Bb6 {[%emt 0:01:09]} 39. Kf5 {[%emt 0:00:44]} g4 {[%emt 0:00:17]} 40. Kf6 {[%emt 0:01:06]} Ke8 {[%emt 0:01:08]} 41. e6 {[%emt 0:01:21]} Bc5 {[%emt 0:00:25]} 42. Ne4 {[%emt 0:00:32]} 1-0

[Event "26th Abu Dhabi Master 2019"]
[Site "Abu Dhabi"]
[Date "2019.08.03"]
[Round "2.71"]
[White "Vantika Agrawal"]
[Black "Davainis, Marius"]
[Result "1-0"]
[ECO "A60"]
[WhiteElo "2243"]
[BlackElo "2105"]
[Annotator "NA"]
[PlyCount "69"]
[EventDate "2019.08.02"]
[EventType "swiss"]
[EventCountry "UAE"]
[SourceTitle "playchess.com"]
[Source "ChessBase"]
[SourceQuality "1"]
[TimeControl "5400+30"]

1. d4 {[%emt 0:00:12]} Nf6 {[%emt 0:00:00]} 2. c4 {[%emt 0:00:05]} c5 {[%emt 0:00:00]} 3. d5 {[%emt 0:00:12]} e6 {[%emt 0:00:00]} 4. Nc3 {[%emt 0:00:35]} exd5 {[%emt 0:00:00]} 5. cxd5 {[%emt 0:00:05]} Bd6 {[%emt 0:00:27]} 6. Nf3 {[%emt 0:03:41]} O-O {[%emt 0:00:11]} 7. g3 {[%emt 0:02:49]} Re8 {[%emt 0:00:17]} 8. Bg2 {[%emt 0:00:19]} Bc7 {[%emt 0:02:44]} 9. O-O {[%emt 0:00:27]} d6 {[%emt 0:00:07]} 10. Nd2 {[%emt 0:08:40]} a6 {[%emt 0:01:08]} 11. a4 {[%emt 0:00:33]} Nbd7 {[%emt 0:01:46]} 12. Nc4 {[%emt 0:06:53]} Ne5 {[%emt 0:03:07]} 13. Nxe5 {[%emt 0:09:00]} Rxe5 {[%emt 0:00:10]} 14. e4 {[%emt 0:03:17]} Rb8 {[%emt 0:04:10]} 15. f4 {[%emt 0:14:31]} Re8 {[%emt 0:02:32]} 16. e5 {[%emt 0:01:43]} dxe5 {[%emt 0:01:39]} 17. f5 {[%emt 0:00:18]} Ba5 {[%emt 0:18:00]} 18. g4 {[%emt 0:10:06]} Bxc3 {[%emt 0:15:37]} 19. bxc3 {[%emt 0:00:09]} Qd6 {[%emt 0:00:03]} 20. g5 {[%emt 0:05:08]} Nd7 {[%emt 0:00:04]} 21. f6 {[%emt 0:00:32]} g6 {[%emt 0:08:18]} 22. h4 {[%emt 0:01:18]} Nf8 {[%emt 0:04:41]} 23. h5 {[%emt 0:01:48]} Bf5 {[%emt 0:02:11]} 24. hxg6 {[%emt 0:02:28]} Bxg6 {[%emt 0:00:42]} 25. Qg4 {[%emt 0:04:15]} Rbd8 {[%emt 0:09:18]} 26. c4 {[%emt 0:02:31]} Nd7 {[%emt 0:07:29]} 27. Be4 {[%emt 0:05:35]} Bxe4 {[%emt 0:11:48]} 28. Qxe4 {[%emt 0:00:08]} Kh8 {[%emt 0:00:08]} 29. Ra3 {[%emt 0:01:03]} Qf8 {[%emt 0:02:27]} 30. g6 {[%emt 0:04:07]} fxg6 {[%emt 0:00:24]} 31. f7 {[%emt 0:00:07]} Re7 {[%emt 0:02:04]} 32. Bg5 {[%emt 0:00:05]} Rc8 {[%emt 0:00:44]} 33. Qxg6 {[%emt 0:01:30]} hxg6 {[%emt 0:00:56]} 34. Rh3+ {[%emt 0:00:05]} Qh6 {[%emt 0:00:56]} 35. Bxh6 {[%emt 0:00:22]} 1-0

[Event "26th Abu Dhabi Master 2019"]
[Site "Abu Dhabi"]
[Date "2019.08.03"]
[Round "2.72"]
[White "Srihari L"]
[Black "Gomes, Mary Ann"]
[Result "1/2-1/2"]
[ECO "B53"]
[WhiteElo "2101"]
[BlackElo "2303"]
[Annotator "NA"]
[PlyCount "93"]
[EventDate "2019.08.02"]
[EventType "swiss"]
[EventCountry "UAE"]
[SourceTitle "playchess.com"]
[Source "ChessBase"]
[SourceQuality "1"]
[TimeControl "5400+30"]

1. e4 {[%emt 0:05:45]} c5 {[%emt 0:00:00]} 2. Nf3 {[%emt 0:00:16]} d6 {[%emt 0:00:00]} 3. d4 {[%emt 0:00:03]} cxd4 {[%emt 0:00:04]} 4. Qxd4 {[%emt 0:00:03]} a6 {[%emt 0:00:17]} 5. c4 {[%emt 0:00:09]} Nc6 {[%emt 0:00:08]} 6. Qe3 {[%emt 0:00:07]} Bg4 {[%emt 0:00:10]} 7. Be2 {[%emt 0:00:17]} Rc8 {[%emt 0:00:18]} 8. b3 {[%emt 0:02:22]} e5 {[%emt 0:00:20]} 9. Bb2 {[%emt 0:00:26]} Nf6 {[%emt 0:01:28]} 10. O-O {[%emt 0:01:47]} Bxf3 {[%emt 0:00:32]} 11. Bxf3 {[%emt 0:00:32]} Be7 {[%emt 0:00:05]} 12. Rd1 {[%emt 0:03:05]} Qc7 {[%emt 0:00:06]} 13. Nc3 {[%emt 0:07:51]} Nd4 {[%emt 0:00:31]} 14. Rac1 {[%emt 0:00:09]} O-O {[%emt 0:00:42]} 15. g3 {[%emt 0:18:01]} Nxf3+ {[%emt 0:05:08]} 16. Qxf3 {[%emt 0:00:03]} Qa5 {[%emt 0:01:20]} 17. Nd5 {[%emt 0:04:36]} Nxd5 {[%emt 0:01:51]} 18. Rxd5 {[%emt 0:02:42]} Qb6 {[%emt 0:03:12]} 19. Rcd1 {[%emt 0:03:26]} Rc5 {[%emt 0:03:48]} 20. Rxc5 {[%emt 0:07:59]} Qxc5 {[%emt 0:03:32]} 21. Rd5 {[%emt 0:00:18]} Qc6 {[%emt 0:03:24]} 22. Qd3 {[%emt 0:00:09]} b6 {[%emt 0:01:35]} 23. f4 {[%emt 0:01:14]} f6 {[%emt 0:00:14]} 24. a4 {[%emt 0:00:26]} Qc8 {[%emt 0:01:17]} 25. f5 {[%emt 0:10:00]} g6 {[%emt 0:00:24]} 26. Ba3 {[%emt 0:00:43]} Rd8 {[%emt 0:02:54]} 27. Kg2 {[%emt 0:02:28]} Qc7 {[%emt 0:01:58]} 28. Qd2 {[%emt 0:01:59]} gxf5 {[%emt 0:00:48]} 29. exf5 {[%emt 0:00:14]} Bf8 {[%emt 0:00:15]} 30. g4 {[%emt 0:03:32]} Rd7 {[%emt 0:01:03]} 31. Kg3 {[%emt 0:00:20]} h5 {[%emt 0:02:01]} 32. h3 {[%emt 0:00:47]} hxg4 {[%emt 0:00:09]} 33. hxg4 {[%emt 0:00:07]} Qd8 {[%emt 0:07:39]} 34. a5 {[%emt 0:01:50]} bxa5 {[%emt 0:01:09]} 35. Qd3 {[%emt 0:09:16]} Qb8 {[%emt 0:01:17]} 36. Kg2 {[%emt 0:01:47]} Qb7 {[%emt 0:03:06]} 37. Kg3 {[%emt 0:01:47]} Bh6 {[%emt 0:06:32]} 38. Rxd6 {[%emt 0:05:14]} Rxd6 {[%emt 0:01:55]} 39. Bxd6 {[%emt 0:02:09]} Bf4+ {[%emt 0:00:05]} 40. Kf2 {[%emt 0:01:59]} e4 {[%emt 0:05:09]} 41. Qd1 {[%emt 0:00:41]} e3+ {[%emt 0:10:19]} 42. Kg1 {[%emt 0:00:16]} Qe4 {[%emt 0:05:23]} 43. Bxf4 {[%emt 0:00:12]} Qxf4 {[%emt 0:00:06]} 44. Qd8+ {[%emt 0:00:33]} Kf7 {[%emt 0:00:11]} 45. Qd7+ {[%emt 0:00:21]} Kf8 {[%emt 0:00:06]} 46. Qd8+ {[%emt 0:00:25]} Kf7 {[%emt 0:00:06]} 47. Qd7+ {[%emt 0:00:05]} 1/2-1/2

[Event "26th Abu Dhabi Master 2019"]
[Site "Abu Dhabi"]
[Date "2019.08.03"]
[Round "2.74"]
[White "Sharma Isha"]
[Black "Alinasab, Mobina"]
[Result "1-0"]
[ECO "C04"]
[WhiteElo "2188"]
[BlackElo "2280"]
[Annotator "NA"]
[PlyCount "75"]
[EventDate "2019.08.02"]
[EventType "swiss"]
[EventCountry "UAE"]
[SourceTitle "playchess.com"]
[Source "ChessBase"]
[SourceQuality "1"]
[TimeControl "5400+30"]

1. e4 e6 2. d4 d5 3. Nd2 Nc6 4. Ngf3 Nf6 {[%emt 0:01:33]} 5. e5 {[%emt 0:03:08]} Nd7 {[%emt 0:00:30]} 6. c3 {[%emt 0:00:30]} f6 {[%emt 0:00:30]} 7. exf6 {[%emt 0:00:30]} Qxf6 {[%emt 0:06:42]} 8. Be2 {[%emt 0:02:33]} Bd6 {[%emt 0:00:09]} 9. Nf1 {[%emt 0:01:35]} O-O {[%emt 0:04:39]} 10. Ng3 {[%emt 0:00:37]} e5 {[%emt 0:14:55]} 11. dxe5 {[%emt 0:02:46]} Ndxe5 {[%emt 0:00:06]} 12. O-O {[%emt 0:01:56]} Be6 {[%emt 0:08:29]} 13. Ng5 {[%emt 0:01:53]} Bf7 {[%emt 0:05:48]} 14. f4 {[%emt 0:04:56]} Nc4 {[%emt 0:13:42]} 15. Bd3 {[%emt 0:01:24]} Rfe8 {[%emt 0:11:34]} 16. Bxh7+ {[%emt 0:02:15]} Kf8 {[%emt 0:00:27]} 17. Be4 {[%emt 0:02:48]} Qe7 {[%emt 0:06:54]} 18. Nf5 {[%emt 0:01:50]} Bc5+ {[%emt 0:08:01]} 19. Kh1 {[%emt 0:00:09]} Qxe4 {[%emt 0:01:45]} 20. Nh7+ {[%emt 0:01:42]} Kg8 {[%emt 0:00:05]} 21. Nf6+ {[%emt 0:00:03]} Kh8 {[%emt 0:02:28]} 22. Nxe4 {[%emt 0:00:45]} Rxe4 {[%emt 0:00:06]} 23. Qg4 {[%emt 0:01:07]} Bf8 {[%emt 0:00:05]} 24. b3 {[%emt 0:00:39]} Nd6 {[%emt 0:00:20]} 25. Ng3 {[%emt 0:00:10]} Ree8 {[%emt 0:01:19]} 26. f5 {[%emt 0:00:22]} Ne4 {[%emt 0:00:14]} 27. Bf4 {[%emt 0:02:30]} Ne5 {[%emt 0:01:46]} 28. Qh4+ {[%emt 0:01:05]} Kg8 {[%emt 0:00:01]} 29. Nxe4 {[%emt 0:00:30]} dxe4 {[%emt 0:00:09]} 30. Bxe5 {[%emt 0:00:54]} Rxe5 {[%emt 0:00:05]} 31. Rae1 {[%emt 0:01:12]} Rae8 {[%emt 0:00:52]} 32. Re3 {[%emt 0:00:14]} Be7 {[%emt 0:01:55]} 33. Qf4 {[%emt 0:00:18]} Bc5 {[%emt 0:00:48]} 34. Rh3 {[%emt 0:01:06]} e3 {[%emt 0:01:50]} 35. Qh4 {[%emt 0:00:42]} Bh5 {[%emt 0:07:25]} 36. f6 {[%emt 0:02:54]} gxf6 {[%emt 0:02:12]} 37. Qxf6 {[%emt 0:00:10]} R8e7 {[%emt 0:00:30]} 38. Qf8+ {[%emt 0:00:30]} 1-0

[Event "26th Abu Dhabi Master 2019"]
[Site "Abu Dhabi"]
[Date "2019.08.03"]
[Round "2.75"]
[White "Ajay Krishna, S."]
[Black "Thrish Karthik"]
[Result "1-0"]
[ECO "A06"]
[WhiteElo "2280"]
[BlackElo "2075"]
[Annotator "NA"]
[PlyCount "89"]
[EventDate "2019.08.02"]
[EventType "swiss"]
[EventCountry "UAE"]
[SourceTitle "playchess.com"]
[Source "ChessBase"]
[SourceQuality "1"]
[TimeControl "5400+30"]

1. Nf3 d5 2. c4 c6 3. g3 Nf6 4. Bg2 g6 5. b3 Bg7 6. Bb2 O-O 7. O-O Nbd7 8. d4 Ne4 9. Nbd2 Nxd2 10. Qxd2 Nf6 11. cxd5 Ne4 12. Qf4 cxd5 13. Rfc1 Be6 14. Ne5 Nd6 15. Nd3 Nf5 16. e3 h5 17. Qc7 Qxc7 18. Rxc7 b6 19. Nb4 Rfd8 20. Rac1 a5 21. Nc6 Rdc8 22. Na7 Rxc7 23. Rxc7 Bf6 24. a4 Nd6 25. Ba3 Ne8 26. Rb7 Nd6 27. Bxd6 exd6 28. Nb5 Rc8 29. Rc7 Rxc7 30. Nxc7 Bd8 31. Nb5 Kf8 32. Nc3 Bf6 33. Bxd5 Ke7 34. Kf1 Kd7 35. Ke2 h4 36. Kd3 hxg3 37. hxg3 Bd8 38. Bxe6+ fxe6 39. d5 exd5 40. Nxd5 g5 41. g4 Ke6 42. Ke4 Kd7 43. Kf5 Kc6 44. Ke6 Kc5 45. f4 {Kxd5+} 1-0

[Event "26th Abu Dhabi Master 2019"]
[Site "Abu Dhabi"]
[Date "2019.08.03"]
[Round "3.2"]
[White "Idani, Pouya"]
[Black "Maghsoodloo, Parham"]
[Result "0-1"]
[ECO "C15"]
[WhiteElo "2595"]
[BlackElo "2656"]
[Annotator "RC"]
[PlyCount "116"]
[EventDate "2019.08.02"]
[EventType "swiss"]
[EventCountry "UAE"]
[SourceTitle "playchess.com"]
[Source "ChessBase"]
[SourceQuality "1"]
[TimeControl "5400+30"]

1. e4 e6 {[%emt 0:06:23]} 2. d4 {[%emt 0:00:00]} d5 {[%emt 0:00:06]} 3. Nc3 {[%emt 0:01:59]} Bb4 {[%emt 0:00:51]} 4. exd5 {[%emt 0:00:21]} exd5 {[%emt 0:00:30]} 5. Bd3 {[%emt 0:00:05]} Nc6 {[%emt 0:05:40]} 6. Nf3 {[%emt 0:00:52]} Nge7 {[%emt 0:00:20]} 7. O-O {[%emt 0:00:16]} O-O {[%emt 0:08:08]} 8. a3 {[%emt 0:02:29]} Bxc3 {[%emt 0:03:07]} 9. bxc3 {[%emt 0:00:05]} Bf5 {[%emt 0:00:04]} 10. Re1 {[%emt 0:03:48]} Re8 {[%emt 0:03:49]} 11. Rb1 {[%emt 0:06:16]} b6 {[%emt 0:02:44]} 12. c4 {[%emt 0:03:07]} Bxd3 {[%emt 0:08:29]} 13. Qxd3 {[%emt 0:00:18]} dxc4 {[%emt 0:00:09]} 14. Qxc4 {[%emt 0:00:11]} Qd5 {[%emt 0:00:07]} 15. Qxd5 {[%emt 0:05:39]} Nxd5 {[%emt 0:00:44]} 16. Rxe8+ {[%emt 0:00:03]} Rxe8 {[%emt 0:00:04]} 17. Bd2 {[%emt 0:00:03]} Nf6 {[%emt 0:02:20]} 18. c4 {[%emt 0:09:58]} Ne4 {[%emt 0:01:39]} 19. Re1 {[%emt 0:01:34]} Kf8 {[%emt 0:04:37]} 20. Bf4 {[%emt 0:01:53]} Nd6 {[%emt 0:08:54]} 21. Rxe8+ {[%emt 0:04:44]} Kxe8 {[%emt 0:02:34]} 22. Bxd6 {[%emt 0:00:55]} cxd6 {[%emt 0:00:05]} 23. Kf1 {[%emt 0:01:22]} d5 {[%emt 0:14:30]} 24. cxd5 {[%emt 0:00:04]} Ne7 {[%emt 0:00:02]} 25. d6 {[%emt 0:00:06]} Nf5 {[%emt 0:00:04]} 26. Ke2 {[%emt 0:00:04]} f6 {[%emt 0:00:03]} 27. Kd3 {[%emt 0:00:51]} Kd7 {[%emt 0:00:05]} 28. Nd2 {[%emt 0:07:10]} Kxd6 {[%emt 0:01:45]} 29. Kc4 {[%emt 0:00:46]} a6 {[%emt 0:02:03]} 30. Ne4+ {[%emt 0:03:17]} Ke6 {[%emt 0:04:46]} 31. Kd3 {[%emt 0:02:30]} Ne7 {[%emt 0:01:48]} 32. a4 {[%emt 0:01:59]} Kd5 {[%emt 0:01:32]} 33. Nc3+ {[%emt 0:01:36]} Kd6 {[%emt 0:00:06]} 34. Kc4 {[%emt 0:00:40]} Nd5 {[%emt 0:01:39]} 35. Ne4+ {[%emt 0:01:46]} Kc6 {[%emt 0:00:20]} 36. g3 {[%emt 0:01:44]} Nc7 {[%emt 0:03:36]} 37. Kd3 {[%emt 0:04:01]} Ne8 {[%emt 0:00:33]} 38. Nc3 {[%emt 0:01:30]} Nd6 {[%emt 0:00:05]} 39. Na2 {[%emt 0:00:20]} a5 {[%emt 0:00:51]} 40. Nc3 {[%emt 0:00:41]} b5 {[%emt 0:00:08]} 41. axb5+ {[%emt 0:00:10]} Nxb5 {[%emt 0:00:05]} 42. Na4 {[%emt 0:00:03]} Nc7 {[%emt 0:01:55]} 43. Kc4 {[%emt 0:07:22]} Nd5 {[%emt 0:00:13]} 44. Kb3 {[%emt 0:01:55]} Kb5 {[%emt 0:03:38]} 45. Nc5 {[%emt 0:00:19]} Ne7 {[%emt 0:01:58]} 46. Na4 {[%emt 0:01:09]} Nf5 {[%emt 0:01:18]} 47. Nc3+ {[%emt 0:00:41]} Kc6 {[%emt 0:00:01]} 48. Kc4 {[%emt 0:01:25]} Nd6+ {[%emt 0:00:05]} 49. Kd3 {[%emt 0:00:03]} h5 {[%emt 0:00:13]} 50. h3 {[%emt 0:02:13]} g5 {[%emt 0:01:06]} 51. f3 {[%emt 0:05:44]} f5 {[%emt 0:03:07]} 52. f4 {[%emt 0:02:23]} g4 {[%emt 0:03:05]} 53. h4 {[%emt 0:00:06]} Nb5 {[%emt 0:00:22]} 54. Na4 {[%emt 0:01:56]} Nc7 {[%emt 0:00:07]} 55. Kc4 {[%emt 0:02:45]} Nd5 {[%emt 0:00:06]} 56. Kd3 {[%emt 0:04:05]} Kb5 {[%emt 0:02:12]} 57. Nc5 {[%emt 0:00:11]} a4 {[%emt 0:00:04]} 58. Kc2 {[%emt 0:00:58]} Nxf4 {[%emt 0:00:51]} 0-1